fUSD/lending_fUSD_20240319
["ID","MTS","AMOUNT","RATE_DAILY","PERIOD"]
[319535265,1710832235191,-300.0,0.00024057,7]
[319535266,1710832235206,-7597.45538012,0.00024057,30]
[319535267,1710832235217,-1000.0,0.00024057,2]
[319535268,1710832235228,-1000.0,0.00024057,2]
[319535269,1710832235239,-1000.0,0.00024057,2]
[319535270,1710832235251,-245.05,0.00024057,2]
[319535271,1710832235261,-181.913618,0.00024384,2]
[319535272,1710832235272,-800.0,0.00024413,2]
[319535273,1710832235283,-200.0,0.00024413,2]
[319535274,1710832235292,-1000.0,0.00024658,2]
[319535275,1710832235302,-1000.0,0.00024658,2]
[319535276,1710832235312,-1000.0,0.00024658,2]
[319535277,1710832235322,-1000.0,0.00024658,2]
[319535278,1710832235332,-1000.0,0.00024658,2]
[319535279,1710832235342,-1000.0,0.00024658,2]
[319535280,1710832235352,-1000.0,0.00024658,2]
[319535281,1710832235361,-1000.0,0.00024658,2]
[319535282,1710832235371,-1000.0,0.00024658,2]
[319535283,1710832235381,-1000.0,0.00024658,2]
[319535284,1710832235391,-1000.0,0.00024658,2]
[319535285,1710832235402,-1000.0,0.00024658,2]
[319535286,1710832235414,-1000.0,0.00024658,2]
[319535287,1710832235439,-1000.0,0.00024658,2]
[319535288,1710832235456,-1000.0,0.00024658,2]
[319535289,1710832235465,-1000.0,0.00024658,2]
[319535290,1710832235475,-1000.0,0.00024658,2]
[319535291,1710832235484,-1000.0,0.00024658,2]
[319535292,1710832235494,-1000.0,0.00024658,2]
[319535293,1710832235503,-1000.0,0.00024658,2]
[319535294,1710832235513,-160.67,0.00024664,2]
[319535295,1710832235522,-7130.54053683,0.000249,2]
[319535296,1710832235533,-5946.01199295,0.00024998,2]
[319535297,1710832235546,-151.355904,0.00024999,7]
[319535298,1710832235563,-151.0,0.00024999,7]
[319535299,1710832235573,-151.0,0.00024999,7]
[319535300,1710832235582,-151.0,0.00024999,7]
[319535301,1710832235591,-274.963665,0.00024999,7]
[319535302,1710832235601,-2555.79703607,0.00025,3]
[319535303,1710832235611,-1621217.9246336,0.00025,2]
[319535304,1710832235620,-2452.58966569,0.00025,5]
[319535305,1710832235629,-151.0,0.00025,7]
[319535306,1710832235639,-151.0,0.00025,7]
[319535307,1710832235648,-151.0,0.00025,7]
[319535308,1710832235657,-275.1139,0.00025,7]
[319535309,1710832235671,-1007.0,0.00025,4]
[319535310,1710832235681,-151.0,0.00025,7]
[319535311,1710832235691,-151.0,0.00025,7]
[319535312,1710832235701,-257.414335,0.00025,7]
[319535313,1710832235711,-151.0,0.00025,7]
[319535314,1710832235721,-151.0,0.00025,7]
[319535315,1710832235731,-151.0,0.00025,7]
[319535316,1710832235740,-181.6381,0.00025,7]
[319535317,1710832235750,-151.0,0.00025,7]
[319535318,1710832235760,-188.021068,0.00025,7]
[319535319,1710832235769,-151.495058,0.00025,7]
[319535320,1710832235779,-151.495058,0.00025,7]
[319535321,1710832235789,-151.0,0.00025,7]
[319535322,1710832235798,-151.0,0.00025,7]
[319535323,1710832235808,-151.495058,0.00025,7]
[319535324,1710832235817,-151.495058,0.00025,7]
[319535325,1710832235827,-212.398986,0.00025,7]
[319535326,1710832235836,-151.0,0.00025,7]
[319535327,1710832235846,-151.0,0.00025,7]
[319535328,1710832235854,-151.0,0.00025,7]
[319535329,1710832235864,-151.0,0.00025,7]
[319535330,1710832235873,-151.0,0.00025,7]
[319535331,1710832235882,-151.0,0.00025,7]
[319535332,1710832235891,-151.0,0.00025,7]
[319535333,1710832235901,-151.0,0.00025,7]
[319535334,1710832235911,-2227.74100577,0.00025082,2]
[319535335,1710832235923,-181.913618,0.00025205,2]
[319535336,1710832235933,-158.99011171,0.00025392,2]
[319535337,1710832235942,-158.99011171,0.00025395,2]
[319535338,1710832235951,-158.99011171,0.00025825,2]
[319535339,1710832235961,-181.913618,0.00026027,2]
[319535340,1710832235971,-190.66,0.00026279,2]
[319535341,1710832235981,-1899.35484,0.0002636,2]
[319535342,1710832235991,-181.913618,0.00026849,2]
[319535343,1710832236001,-1377.88012791,0.00027,2]
[319535344,1710832236011,-7130.54053677,0.00027146,2]
[319535345,1710832236021,-1104.75587598,0.0002736,120]
[319535346,1710832236031,-376.28189161,0.00027362,2]
[319535347,1710832236041,-309.25214321,0.00027397,10]
[319535348,1710832236050,-176.169272,0.00027486,7]
[319535349,1710832236060,-151.0,0.00027486,7]
[319535350,1710832236070,-151.0,0.00027486,7]
[319535351,1710832236079,-181.913618,0.00027671,14]
[319535352,1710832236089,-166.68,0.00027789,10]
[319535353,1710832236100,-976.0,0.00028046,5]
[319535354,1710832236109,-152.25679466,0.00028046,2]
[319535355,1710832236120,-289.06449112,0.00028216,2]
[319535356,1710832236131,-289.06449112,0.00028216,2]
[319535357,1710832236141,-289.06449112,0.00028216,2]
[319535358,1710832236151,-289.06449112,0.00028216,2]
[319535359,1710832236162,-289.06449112,0.00028216,2]
[319535360,1710832236176,-190.66,0.00028543,2]
[319535361,1710832236186,-150.0,0.0002877,2]
[319535362,1710832236199,-2227.74100577,0.00028809,2]
[319535363,1710832236209,-500.88552146,0.0002887,2]
[319535364,1710832236219,-1105.56770005,0.00029,4]
[319535365,1710832236229,-158.99011171,0.00029307,2]
[319535366,1710832236239,-7130.54053677,0.00029391,10]
[319535367,1710832236250,-151.0,0.00029748,7]
[319535368,1710832236259,-457.98899569,0.0003,4]
[319535369,1710832236269,-300.0,0.0003,7]
[319535370,1710832236279,-271.55242602,0.0003,4]
[319535371,1710832236289,-617486.3726505,0.0003,7]
[319535372,1710832236299,-151.0,0.0003,7]
[319535373,1710832236309,-1000.0,0.0003,10]
[319535374,1710832236319,-500.0,0.0003,9]
[319535375,1710832236328,-156.56,0.0003,2]
[319535376,1710832236338,-156.56,0.0003,2]
[319535377,1710832236348,-156.56,0.0003,2]
[319535378,1710832236358,-156.56,0.0003,2]
[319535379,1710832236367,-156.56,0.0003,2]
[319535380,1710832236377,-156.56,0.0003,2]
[319535381,1710832236387,-156.56,0.0003,2]
[319535382,1710832236397,-156.56,0.0003,2]
[319535383,1710832236406,-156.56,0.0003,2]
[319535384,1710832236416,-156.56,0.0003,2]
[319535385,1710832236430,-156.56,0.0003,2]
[319535386,1710832236440,-156.56,0.0003,2]
[319535387,1710832236449,-156.56,0.0003,2]
[319535388,1710832236459,-156.56,0.0003,2]
[319535389,1710832236468,-156.56,0.0003,2]
[319535390,1710832236478,-156.56,0.0003,2]
[319535391,1710832236488,-156.56,0.0003,2]
[319535392,1710832236842,-156.56,0.0003,2]
[319535393,1710832236856,-156.56,0.0003,2]
[319535394,1710832236866,-156.56,0.0003,2]
[319535395,1710832236876,-156.56,0.0003,2]
[319535396,1710832236885,-156.56,0.0003,2]
[319535397,1710832236895,-151.07221851,0.00030774,7]
[319535398,1710832236905,-190.66,0.00030807,2]
[319535399,1710832236914,-10307.81176484,0.0003103,2]
[319535400,1710832236929,-7130.54053677,0.00031637,18]
[319535401,1710832236938,-3000.0,0.00032463,7]
[319535402,1710832236948,-2227.74100577,0.00032536,4]
[319535403,1710832236959,-2309.99385534,0.000328,2]
[319535404,1710832236968,-364.13972161,0.000328,2]
[319535405,1710832236978,-289.06449112,0.00032899,2]
[319535406,1710832236988,-289.06449112,0.00032899,2]
[319535407,1710832236998,-1421166.3205926,0.000329,7]
[319535408,1710832237008,-151.0,0.000329,7]
[319535409,1710832237018,-151.0,0.000329,7]
[319535410,1710832237029,-151.495058,0.000329,7]
[319535411,1710832237039,-151.495058,0.000329,7]
[319535412,1710832237049,-151.0,0.000329,7]
[319535413,1710832237058,-151.0,0.000329,7]
[319535414,1710832237068,-151.0,0.000329,7]
[319535415,1710832237077,-151.0,0.000329,7]
[319535416,1710832237087,-1948.98,0.00033038,2]
[319535417,1710832237097,-1501.07,0.00033038,30]
[319535418,1710832237106,-190.66,0.00033071,2]
[319535419,1710832237115,-200.0,0.000333,30]
[319535420,1710832237136,-531.0,0.000333,30]
[319535421,1710832237147,-200.0,0.000333,30]
[319535422,1710832237171,-200.0,0.000333,30]
[319535423,1710832237180,-200.0,0.000333,30]
[319535424,1710832237191,-200.0,0.000333,30]
[319535425,1710832237202,-200.0,0.000333,30]
[319535426,1710832237212,-200.0,0.000333,30]
[319535427,1710832237223,-200.0,0.000333,30]
[319535428,1710832237233,-200.0,0.000333,30]
[319535429,1710832237242,-200.0,0.000333,30]
[319535430,1710832237252,-200.0,0.000333,30]
[319535431,1710832237262,-200.0,0.000333,30]
[319535432,1710832237272,-200.0,0.000333,30]
[319535433,1710832237282,-353.0,0.000333,30]
[319535434,1710832237293,-273.13044009,0.000335,30]
[319535435,1710832237302,-158.6,0.000335,2]
[319535436,1710832237312,-158.6,0.000335,2]
[319535437,1710832237321,-158.6,0.000335,2]
[319535438,1710832237331,-158.6,0.000335,2]
[319535439,1710832237340,-166.68,0.0003366,10]
[319535440,1710832237350,-7130.54053677,0.00033882,26]
[319535441,1710832237360,-5800.0,0.0003422,2]
[319535442,1710832237370,-800.0,0.00034937,10]
[319535443,1710832237379,-200.0,0.00034937,10]
[319535444,1710832237389,-500.0,0.00035,8]
[319535445,1710832237398,-160.26,0.00035137,2]
[319535446,1710832237407,-190.66,0.00035335,2]
[319535447,1710832237419,-400.0,0.0003597,2]
[319535448,1710832237428,-7130.54053677,0.00036128,34]
[319535449,1710832237440,-2227.74100577,0.00036264,9]
[319535450,1710832237449,-158.99011171,0.00036776,7]
[319535451,1710832237459,-158.99011171,0.00036794,7]
[319535452,1710832237469,-50606.03572959,0.0003688,2]
[319535453,1710832237479,-158.99011171,0.000371,7]
[319535454,1710832237488,-170.223598,0.00037132,2]
[319535455,1710832237497,-190.66,0.00037599,2]
[319535456,1710832237507,-170.223598,0.00037751,2]
[319535457,1710832237517,-170.223598,0.0003837,2]
[319535458,1710832237527,-7130.54053677,0.00038373,42]
[319535459,1710832237537,-158.6,0.000386,3]
[319535460,1710832237547,-158.6,0.000386,3]
[319535461,1710832237557,-158.6,0.000386,3]
[319535462,1710832237567,-158.6,0.000386,3]
[319535463,1710832237577,-376.28189161,0.00038824,2]
[319535464,1710832237586,-12654.70229582,0.000389,5]
[319535465,1710832237595,-170.223598,0.00038989,2]
[319535466,1710832237605,-5670.0,0.00039158,2]
[319535467,1710832237615,-4763.0,0.00039158,2]
[319535468,1710832237625,-154.025,0.00039158,2]
[319535469,1710832237636,-42865.0,0.00039158,2]
[319535470,1710832237645,-2436.829,0.00039158,2]
[319535471,1710832237655,-5000.0,0.00039463,7]
[319535472,1710832237664,-166.68,0.0003953,10]
[319535474,1710832237679,-190.66,0.00039863,2]
[319535475,1710832237689,-2302.90147038,0.000399,2]
[319535476,1710832237698,-2302.90147036,0.000399,2]
[319535477,1710832237708,-719.80523536,0.000399,2]
[319535479,1710832237718,-2302.90147036,0.000399,2]
[319535481,1710832237727,-719.80523535,0.000399,2]
[319535483,1710832237737,-2302.90147036,0.000399,2]
[319535484,1710832237747,-719.80523535,0.000399,2]
[319535487,1710832237757,-719.80523535,0.000399,2]
[319535489,1710832237766,-2302.90147036,0.000399,2]
[319535491,1710832237776,-719.80523535,0.000399,2]
[319535493,1710832237785,-2302.90147036,0.000399,2]
[319535496,1710832237795,-2302.90147036,0.000399,2]
[319535497,1710832237804,-719.80523535,0.000399,2]
[319535499,1710832237813,-719.80523535,0.000399,2]
[319535500,1710832237823,-2227.74100577,0.00039991,13]
[319535501,1710832237833,-304.442634,0.0004,120]
[319535504,1710832237843,-3299.993,0.0004,4]
[319535507,1710832237852,-500.3567673,0.0004,30]
[319535511,1710832237862,-1000.0,0.0004,30]
[319535515,1710832237871,-400.0,0.0004027,3]
[319535517,1710832237881,-232.0,0.0004028,50]
[319535519,1710832237890,-7130.54053677,0.00040619,50]
[319535521,1710832237900,-183.0,0.00041096,2]
[319535523,1710832237909,-4000.0,0.00041096,2]
[319535525,1710832237922,-190.66,0.00042126,2]
[319535528,1710832237932,-2158.526,0.00042158,2]
[319535531,1710832237941,-4757.0,0.00042158,2]
[319535534,1710832237951,-152.25679466,0.00042192,15]
[319535536,1710832237961,-7130.54053677,0.00042865,58]
[319535539,1710832237970,-232.0,0.000431,56]
[319535542,1710832237980,-893.332,0.00043115,2]
[319535545,1710832237990,-535.0,0.00043115,2]
[319535548,1710832237999,-457.0,0.00043115,2]
[319535551,1710832238009,-1226.0,0.00043115,2]
[319535554,1710832238018,-603.0,0.00043115,2]
[319535557,1710832238028,-1264.0,0.00043115,2]
[319535560,1710832238037,-1240.0,0.00043115,2]
[319535564,1710832238047,-392.23,0.00043115,2]
[319535567,1710832238057,-158.6,0.000436,4]
[319535570,1710832238066,-158.6,0.000436,4]
[319535573,1710832238076,-158.6,0.000436,4]
[319535576,1710832238086,-158.6,0.000436,4]
[319535579,1710832238095,-2227.74100577,0.00043718,18]
[319535582,1710832238105,-5294.87,0.000438,30]
[319535585,1710832238115,-8723.26400689,0.00044,10]
[319535587,1710832238125,-2302.90147036,0.00044009,6]
[319535589,1710832238135,-719.80523535,0.00044009,6]
[319535591,1710832238146,-190.66,0.0004439,2]
[319535593,1710832238160,-289.06449112,0.00044999,7]
[319535595,1710832238175,-615456.039143,0.00045,60]
[319535597,1710832238186,-151.0,0.00045,14]
[319535599,1710832238198,-151.0,0.00045,14]
[319535601,1710832238210,-151.495058,0.00045,14]
[319535603,1710832238221,-151.495058,0.00045,14]
[319535605,1710832238233,-290.124313,0.00045,7]
[319535607,1710832238245,-151.0,0.00045,14]
[319535609,1710832238257,-151.0,0.00045,14]
[319535612,1710832238268,-151.0,0.00045,14]
[319535614,1710832238279,-7130.54053677,0.0004511,66]
[319535616,1710832238290,-7401.0974,0.0004514,30]
[319535618,1710832238300,-166.68,0.00045401,120]
[319535620,1710832238310,-800.0,0.00045461,25]
[319535622,1710832238319,-200.0,0.00045461,30]
[319535624,1710832238329,-232.0,0.0004592,61]
[319535626,1710832238339,-10045.84203138,0.00046,30]
[319535628,1710832238349,-7884.14817861,0.00046,90]
[319535629,1710832238360,-457.0,0.00046115,2]
[319535631,1710832238369,-661.965,0.00046115,2]
[319535633,1710832238378,-190.66,0.00046654,2]
[319535635,1710832238388,-1244.0,0.000467,115]
[319535637,1710832238397,-209.77861285,0.00047,15]
[319535639,1710832238407,-7130.54053677,0.00047356,74]
[319535640,1710832238416,-2227.74100577,0.00047445,23]
[319535641,1710832238429,-3395.0,0.00047463,7]
[319535642,1710832238438,-1000.0,0.00047671,120]
[319535644,1710832238448,-1136.45,0.00047671,120]
[319535646,1710832238463,-400.0,0.0004797,3]
[319535648,1710832238488,-544.64676788,0.00048226,4]
[319535650,1710832238500,-2302.90147036,0.00048454,10]
[319535652,1710832238509,-719.80523535,0.00048454,10]
[319535654,1710832238519,-158.6,0.000487,6]
[319535656,1710832238528,-158.6,0.000487,6]
[319535658,1710832238538,-158.6,0.000487,6]
[319535660,1710832238549,-158.6,0.000487,6]
[319535662,1710832238558,-232.0,0.0004874,67]
[319535665,1710832238572,-190.66,0.00048918,2]
[319535668,1710832238582,-2417.24169937,0.00049,30]
[319535671,1710832238591,-899.99999915,0.00049,120]
[319535674,1710832238602,-160.26,0.00049178,120]
[319535677,1710832238611,-216.0,0.0004922,30]
[319535680,1710832238620,-6910.34411375,0.00049401,2]
[319535682,1710832238630,-7130.54053677,0.00049601,83]
[319535686,1710832238639,-12259.49999998,0.000498,2]
[319535689,1710832238649,-1369.5,0.00049829,117]
[319535691,1710832238658,-500.0,0.00049972,120]
[319535693,1710832238667,-427.80435983,0.0005,4]
[319535697,1710832238681,-7371.78065819,0.0005,120]
[319535700,1710832238691,-29201.02673938,0.0005,30]
[319535702,1710832238701,-2200.0,0.0005,5]
[319535704,1710832238709,-613.73,0.0005,60]
[319535706,1710832238718,-274.0,0.0005,30]
[319535707,1710832238728,-2500.0,0.0005,120]
[319535709,1710832238737,-500.0,0.0005,30]
[319535711,1710832238746,-33250.70051618,0.0005,30]
[319535713,1710832238756,-124208.33181676,0.0005,120]
[319535715,1710832238766,-53639.11315175,0.0005,120]
[319535717,1710832238775,-500.0,0.00050246,120]
[319535718,1710832238784,-376.28189161,0.00050286,120]
[319535719,1710832238794,-500.0,0.0005052,120]
[319535720,1710832238803,-500.0,0.00050794,120]
[319535721,1710832238813,-216.0,0.0005089,30]
[319535722,1710832238822,-150.0,0.00051,15]
[319535723,1710832238831,-2262.50453095,0.00051,30]
[319535724,1710832238840,-334.0,0.00051,100]
[319535725,1710832238849,-500.0,0.00051068,120]
[319535726,1710832238858,-2227.74100577,0.00051173,28]
[319535727,1710832238867,-190.66,0.00051182,2]
[319535728,1710832238877,-166.68,0.00051272,120]
[319535729,1710832238886,-500.0,0.00051342,120]
[319535730,1710832238895,-550.0,0.000514,120]
[319535731,1710832238905,-151.031914,0.00051448,71]
[319535732,1710832238914,-334.0,0.000515,101]
[319535733,1710832238930,-450.0,0.0005156,73]
[319535734,1710832238939,-500.0,0.00051616,120]
[319535735,1710832238950,-7130.54053677,0.00051847,91]
[319535736,1710832238959,-500.0,0.0005189,120]
[319535737,1710832238969,-151.0,0.00052,120]
[319535738,1710832238979,-334.0,0.00052,102]
[319535739,1710832238989,-500.0,0.00052055,14]
[319535740,1710832238999,-500.0,0.00052164,120]
[319535741,1710832239008,-5148.0,0.000522,9]
[319535742,1710832239018,-500.0,0.00052438,120]
[319535743,1710832239028,-151.031914,0.00052448,72]
[319535744,1710832239038,-151.0,0.00052493,120]
[319535745,1710832239047,-334.0,0.000525,103]
[319535746,1710832239057,-216.0,0.0005256,30]
[319535747,1710832239067,-283.36,0.0005263,30]
[319535748,1710832239077,-516.4,0.0005263,30]
[319535749,1710832239086,-415.02,0.0005263,30]
[319535750,1710832239096,-150.0,0.0005263,30]
[319535751,1710832239105,-413.76,0.0005263,30]
[319535752,1710832239115,-150.0,0.0005263,30]
[319535753,1710832239124,-220.0,0.000527,30]
[319535754,1710832239134,-1000.0,0.000527,30]
[319535755,1710832239143,-500.0,0.00052712,120]
[319535756,1710832239153,-313.0,0.00052748,28]
[319535757,1710832239163,-7233.77,0.0005287,120]
[319535758,1710832239176,-2302.90147036,0.000529,14]
[319535759,1710832239185,-719.80523535,0.000529,14]
[319535760,1710832239197,-2988.0,0.00052957,117]
[319535761,1710832239207,-500.0,0.00052986,120]
[319535762,1710832239216,-151.0,0.00052986,120]
[319535763,1710832239226,-30041.3051961,0.00053,120]
[319535764,1710832239237,-6684.84705,0.00053,120]
[319535765,1710832239247,-257.4,0.00053,120]
[319535766,1710832239256,-15000.0,0.00053,120]
[319535767,1710832239265,-6869.1,0.00053,120]
[319535768,1710832239352,-334.0,0.00053,104]
[319535769,1710832239361,-15000.0,0.00053,120]
[319535770,1710832239370,-326.50353154,0.00053,30]
[319535771,1710832239380,-150390.1471421,0.00053,30]
[319535772,1710832239389,-15000.0,0.00053,120]
[319535773,1710832239398,-14113.17,0.00053,120]
[319535774,1710832239407,-1902.4,0.00053,120]
[319535775,1710832239417,-15000.0,0.00053,120]
[319535776,1710832239429,-14484.55,0.00053,120]
[319535777,1710832239438,-152.0,0.00053038,3]
[319535778,1710832239448,-2720.25,0.00053088,120]
[319535779,1710832239457,-15000.0,0.00053088,120]
[319535780,1710832239467,-15000.0,0.00053088,120]
[319535781,1710832239477,-15000.0,0.00053088,120]
[319535782,1710832239486,-15000.0,0.00053175,120]
[319535783,1710832239495,-7960.95,0.00053175,120]
[319535784,1710832239504,-15000.0,0.00053175,120]
[319535785,1710832239513,-361.9121211,0.00053253,30]
[319535786,1710832239523,-1032.16766139,0.00053253,30]
[319535787,1710832239532,-500.0,0.0005326,120]
[319535788,1710832239541,-15000.0,0.00053263,120]
[319535789,1710832239550,-13914.85,0.00053263,120]
[319535790,1710832239559,-2460.0,0.00053333,120]
[319535791,1710832239569,-15000.0,0.0005335,120]
[319535792,1710832239578,-15000.0,0.00053438,120]
[319535793,1710832239587,-190.66,0.00053446,2]
[319535794,1710832239597,-151.031914,0.00053448,73]
[319535795,1710832239606,-151.0,0.00053479,120]
[319535796,1710832239615,-334.0,0.000535,105]
[319535797,1710832239624,-5134.91,0.00053525,120]
[319535798,1710832239633,-500.0,0.00053698,90]
[319535799,1710832239642,-158.6,0.000537,7]
[319535800,1710832239651,-158.6,0.000537,7]
[319535801,1710832239660,-158.6,0.000537,7]
[319535802,1710832239673,-158.6,0.000537,7]
[319535803,1710832239682,-158.6,0.000537,7]
[319535804,1710832239691,-158.6,0.000537,7]
[319535805,1710832239700,-1554.52526053,0.000538,90]
[319535806,1710832239709,-313.0,0.0005387,28]
[319535807,1710832239719,-31433.70791774,0.000539,30]
[319535808,1710832239728,-151.495058,0.000539,120]
[319535809,1710832239737,-151.495058,0.000539,120]
[319535811,1710832239747,-2000.0,0.000539,120]
[319535812,1710832239756,-151.0,0.000539,120]
[319535813,1710832239767,-151.0,0.000539,120]
[319535814,1710832239777,-153.86085507,0.000539,120]
[319535815,1710832239786,-153.86085507,0.000539,120]
[319535816,1710832239795,-211.2183,0.000539,120]
[319535817,1710832239804,-400.0,0.0005397,7]
[319535818,1710832239815,-784.79505442,0.0005397,7]
[319535819,1710832239825,-151.0,0.00053973,120]
[319535821,1710832239834,-3643.69293152,0.00053995,7]
[319535822,1710832239844,-38657.42614081,0.00053995,7]
[319535824,1710832239853,-15000.00000002,0.00054,30]
[319535826,1710832239862,-1708.0,0.00054,120]
[319535828,1710832239871,-334.0,0.00054,106]
[319535830,1710832239880,-7130.54053677,0.00054092,99]
[319535832,1710832239889,-216.0,0.0005422,30]
[319535834,1710832239898,-291.0,0.0005422,30]
[319535836,1710832239907,-268.0,0.0005422,30]
[319535838,1710832239916,-500.0,0.00054246,90]
[319535840,1710832239929,-151.031914,0.00054448,74]
[319535842,1710832239938,-3000.0,0.00054463,7]
[319535844,1710832239947,-151.0,0.00054466,120]
[319535847,1710832239957,-662.0,0.000545,107]
[319535849,1710832239967,-400.0,0.0005457,7]
[319535853,1710832239977,-400.0,0.0005457,7]
[319535856,1710832239987,-334.0,0.000546,40]
[319535859,1710832239996,-289.06449112,0.00054792,14]
[319535862,1710832240006,-281.18708574,0.00054793,4]
[319535865,1710832240015,-167839.93465157,0.00054793,7]
[319535868,1710832240025,-151.0,0.00054793,120]
[319535871,1710832240034,-151.0,0.00054793,120]
[319535873,1710832240043,-289.06449112,0.00054793,14]
[319535876,1710832240052,-287.28680387,0.00054794,90]
[319535880,1710832240062,-500.0,0.00054794,120]
[319535883,1710832240071,-510.33276402,0.00054794,30]
[319535885,1710832240081,-500.0,0.00054794,120]
[319535887,1710832240091,-500.0,0.00054794,120]
[319535889,1710832240100,-500.0,0.00054794,120]
[319535892,1710832240109,-500.0,0.00054794,120]
[319535894,1710832240118,-500.0,0.00054794,120]
[319535895,1710832240128,-500.0,0.00054794,120]
[319535897,1710832240138,-500.0,0.00054794,120]
[319535898,1710832240148,-500.0,0.00054794,120]
[319535900,1710832240159,-500.0,0.00054794,120]
[319535902,1710832240173,-500.0,0.00054794,120]
[319535903,1710832240182,-500.0,0.00054794,120]
[319535905,1710832240191,-500.0,0.00054794,120]
[319535906,1710832240203,-500.0,0.00054794,120]
[319535908,1710832240212,-500.0,0.00054794,120]
[319535909,1710832240222,-500.0,0.00054794,120]
[319535911,1710832240231,-500.0,0.00054794,120]
[319535913,1710832240240,-500.61547731,0.00054794,120]
[319535914,1710832240249,-500.0,0.00054794,120]
[319535916,1710832240258,-500.0,0.00054794,120]
[319535917,1710832240267,-500.0,0.00054794,120]
[319535919,1710832240277,-500.0,0.00054794,120]
[319535921,1710832240287,-500.0,0.00054794,120]
[319535922,1710832240296,-500.0,0.00054794,120]
[319535924,1710832240305,-500.0,0.00054794,120]
[319535926,1710832240314,-500.0,0.00054794,120]
[319535927,1710832240324,-500.0,0.00054794,120]
[319535929,1710832240333,-500.0,0.00054794,120]
[319535931,1710832240342,-500.0,0.00054794,120]
[319535933,1710832240351,-200.0,0.00054794,120]
[319535934,1710832240360,-500.0,0.00054794,120]
[319535936,1710832240370,-500.0,0.00054794,120]
[319535937,1710832240379,-500.0,0.00054794,120]
[319535939,1710832240388,-500.0,0.00054794,120]
[319535941,1710832240398,-500.0,0.00054794,120]
[319535942,1710832240407,-500.0,0.00054794,120]
[319535944,1710832240416,-500.0,0.00054794,120]
[319535946,1710832240430,-500.0,0.00054794,120]
[319535948,1710832240440,-500.0,0.00054794,120]
[319535951,1710832240449,-500.0,0.00054794,120]
[319535954,1710832240458,-500.0,0.00054794,120]
[319535956,1710832240468,-500.0,0.00054794,120]
[319535959,1710832240477,-500.0,0.00054794,120]
[319535961,1710832240487,-522.15553889,0.00054794,120]
[319535963,1710832240496,-500.0,0.00054794,120]
[319535965,1710832240506,-500.0,0.00054794,120]
[319535967,1710832240515,-498.68481426,0.00054794,120]
[319535968,1710832240524,-500.0,0.00054794,120]
[319535970,1710832240533,-500.0,0.00054794,120]
[319535972,1710832240545,-500.0,0.00054794,120]
[319535974,1710832240554,-500.0,0.00054794,120]
[319535976,1710832240562,-500.0,0.00054794,120]
[319535978,1710832240571,-500.0,0.00054794,120]
[319535980,1710832240581,-500.0,0.00054794,120]
[319535982,1710832240590,-500.0,0.00054794,120]
[319535984,1710832240600,-573.2,0.00054794,120]
[319535986,1710832240609,-500.77510382,0.00054794,120]
[319535988,1710832240619,-500.0,0.00054794,120]